bitfinex/quotes_ETHUSD_20220118
["timestamp","ask_amount","ask_price","bid_price","bid_amount"]
[1642486270044,2.68198398,3184.8,3184.4,1.90224334]
[1642486270439,0.00113685,3184.7,3184.4,1.90224334]
[1642486270640,0.00113685,3184.7,3184.4,0.50170527]
[1642486270839,0.00113685,3184.7,3184.4,0.20170527]
[1642486271040,0.00113685,3184.7,3184.4,1.0]
[1642486271289,0.00113685,3184.7,3184.4,1.3]
[1642486271488,0.00113685,3184.7,3184.3,3.33152078]
[1642486271689,0.00113685,3184.7,3184.4,2.15995652]
[1642486271890,0.00113685,3184.7,3184.4,2.75995652]
[1642486272293,0.00113685,3184.7,3184.4,1.75995652]
[1642486272698,0.00113685,3184.7,3184.4,1.88545652]
[1642486273094,0.00113685,3184.7,3184.4,2.88545652]
[1642486273895,0.00113685,3184.7,3184.4,2.75995652]
[1642486274095,0.24855545,3184.7,3184.4,2.75995652]
[1642486274895,0.24855545,3184.7,3184.4,5.0914773]
[1642486275334,0.24855545,3184.7,3184.5,0.1255]
[1642486275534,0.24855545,3184.7,3184.5,2.45702078]
[1642486275932,0.24855545,3184.7,3184.5,3.45702078]
[1642486276534,0.24855545,3184.7,3184.5,1.1255]
[1642486276737,0.24855545,3184.7,3184.5,0.1255]
[1642486276935,0.24855545,3184.7,3184.5,1.1255]
[1642486277136,0.24855545,3184.7,3184.5,0.1255]
[1642486278535,0.24855545,3184.7,3184.5,1.1255]
[1642486278781,0.24018998,3184.7,3184.5,1.1255]
[1642486278982,0.24018998,3184.7,3184.5,1.18158313]
[1642486279184,0.00113685,3184.7,3184.5,1.18158313]
[1642486279988,1.22763685,3185.3,3184.5,0.18158313]
[1642486280188,1.10213685,3185.3,3184.5,1.18158313]
[1642486280389,0.00284211,3185.2,3184.5,1.18158313]
[1642486280789,0.00227369,3185.1,3184.5,1.18158313]
[1642486281289,0.00170527,3185.0,3184.5,1.18158313]
[1642486281688,0.00113684,3184.9,3184.5,1.18158313]
[1642486282189,0.00227369,3185.1,3184.5,1.18158313]
[1642486282639,0.00170527,3185.0,3184.5,1.05608313]
[1642486283037,0.00113684,3184.9,3184.5,1.05608313]
[1642486283438,0.00227369,3185.1,3184.5,1.05608313]
[1642486283838,0.00170527,3185.0,3184.5,1.05608313]
[1642486284238,0.00113684,3184.9,3184.5,1.05608313]
[1642486284637,2.68180103,3185.2,3184.5,1.0]
[1642486284638,0.00227369,3185.1,3184.5,1.0]
[1642486285039,0.00170527,3185.0,3184.5,1.0]
[1642486285238,0.00170527,3185.0,3184.5,1.1255]
[1642486285438,0.00113684,3184.9,3184.5,1.1255]
[1642486285841,0.00227369,3185.1,3184.5,1.1255]
[1642486286282,0.00170527,3185.0,3184.5,1.1255]
[1642486286683,0.00113684,3184.9,3184.5,1.1255]
[1642486287084,0.00227369,3185.1,3184.5,1.1255]
[1642486287484,2.68180103,3185.2,3184.5,1.1255]
[1642486287485,0.00170527,3185.0,3184.5,1.1255]
[1642486287891,0.00113684,3184.9,3184.5,1.1255]
[1642486288289,0.00227369,3185.1,3184.5,1.1255]
[1642486288689,0.00170527,3185.0,3184.5,1.1255]
[1642486289089,0.00113684,3184.9,3184.5,1.1255]
[1642486289491,0.00227369,3185.1,3184.5,1.1255]
[1642486289891,0.00170527,3185.0,3184.5,1.1255]
[1642486290335,0.00113684,3184.9,3184.5,1.1255]
[1642486290734,0.00227369,3185.1,3184.5,1.1255]
[1642486291137,0.00170527,3185.0,3184.5,1.1255]
[1642486291434,0.00113684,3184.9,3184.5,2.39371894]
[1642486291837,0.00227369,3185.1,3184.5,2.39371894]
[1642486292237,0.00170527,3185.0,3184.5,2.39371894]
[1642486292641,0.00113684,3184.9,3184.5,2.39371894]
[1642486293041,0.00227369,3185.1,3184.5,2.39371894]
[1642486293341,0.00170527,3185.0,3184.5,2.39371894]
[1642486293541,0.00170527,3185.0,3184.5,2.44961811]
[1642486293786,0.00113684,3184.9,3184.5,2.44961811]
[1642486294184,0.00227369,3185.1,3184.5,2.44961811]
[1642486294585,0.00170527,3185.0,3184.5,1.18139917]
[1642486294785,0.00170527,3185.0,3184.5,1.1255]
[1642486294987,0.00113684,3184.9,3184.5,1.1255]
[1642486295389,0.12777369,3185.1,3184.5,1.0]
[1642486295788,0.00170527,3185.0,3184.5,1.3]
[1642486295987,0.1255,3184.9,3184.4,1.6]
[1642486296188,1.42644537,3184.5,3184.4,1.6]
[1642486297388,1.42644537,3184.5,3184.4,0.3]
[1642486297641,0.00113684,3184.9,3184.2,3.63152078]
[1642486298139,0.00113684,3184.9,3184.3,0.0022737]
[1642486298943,1.10269005,3184.7,3184.3,0.0022737]
[1642486299943,2.72569332,3184.6,3184.3,0.0022737]
[1642486300446,1.10269005,3184.7,3184.3,0.0022737]
[1642486300946,0.1255,3184.6,3184.3,0.0022737]
[1642486301394,0.1255,3184.6,3184.2,0.00284212]
[1642486301598,0.00113684,3184.9,3184.2,0.00284212]
[1642486301997,0.00113684,3184.9,3184.2,0.30284212]
[1642486302196,0.00113684,3184.9,3184.2,1.30284212]
[1642486302996,0.00113684,3184.9,3184.2,1.42834212]
[1642486303196,2.68223796,3184.5,3184.2,1.42834212]
[1642486303597,2.68223796,3184.5,3184.2,0.42834212]
[1642486303998,2.68223796,3184.5,3184.2,0.12834212]
[1642486304398,3.8912748,3184.9,3184.2,0.12834212]
[1642486304601,3.8912748,3184.9,3184.5,1.13467933]
[1642486304799,3.8912748,3184.9,3184.5,1.43467933]
[1642486305045,3.8912748,3184.9,3184.5,1.7905785]
[1642486305439,1.20903684,3184.9,3184.5,1.7905785]
[1642486305640,1.20903684,3184.9,3184.6,1.31758149]
[1642486306040,1.20903684,3184.9,3184.6,2.37348066]
[1642486306342,1.20903684,3184.9,3184.6,4.18598669]
[1642486306541,0.00113684,3184.9,3184.7,1.0]
[1642486306744,3.7054,3185.6,3184.8,5.8255]
[1642486306940,3.7054,3185.6,3184.8,5.88139917]
[1642486307141,0.00341055,3185.5,3184.9,1.05589917]
[1642486307341,0.00341055,3185.5,3185.0,0.1255]
[1642486307541,0.00284212,3185.4,3185.0,0.18139917]
[1642486307745,0.00284212,3185.4,3185.0,0.1255]
[1642486307946,0.0022737,3185.3,3185.1,0.05576049]
[1642486308146,0.0022737,3185.3,3185.2,3.9755]
[1642486308346,7.13992289,3186.0,3185.2,0.1255]
[1642486308545,7.13992289,3186.0,3185.2,1.4255]
[1642486308793,2.68152824,3185.5,3185.2,0.4255]
[1642486309196,0.00284212,3185.4,3185.2,0.1255]
[1642486309600,0.0022737,3185.3,3185.2,0.1255]
[1642486309998,0.0022737,3185.3,3185.2,0.4255]
[1642486311400,0.0022737,3185.3,3185.2,0.3]
[1642486311599,0.0022737,3185.3,3185.1,1.09995195]
[1642486311799,0.0022737,3185.3,3185.2,2.6755]
[1642486312002,2.68152824,3185.7,3185.2,0.1255]
[1642486312200,2.68152824,3185.7,3185.3,1.0]
[1642486312401,0.00397897,3185.6,3185.2,0.1255]
[1642486312842,1.48766066,3185.7,3185.2,0.1255]
[1642486312843,0.00341055,3185.5,3185.2,0.1255]
[1642486313040,0.00341055,3185.5,3185.1,0.7255]
[1642486313241,0.00284212,3185.4,3185.1,1.22545195]
[1642486313442,0.00284212,3185.4,3185.1,0.92545195]
[1642486313642,0.0022737,3185.3,3185.1,1.22545195]
[1642486313841,0.0022737,3185.3,3185.1,1.09995195]
[1642486314042,0.00170527,3185.2,3185.1,1.09995195]
[1642486314245,2.68152824,3185.9,3185.1,1.09995195]
[1642486314443,2.68152824,3185.9,3185.5,1.42807395]
[1642486314843,2.68152824,3185.9,3185.5,1.72807395]
[1642486316044,2.68152824,3185.9,3185.5,2.02807395]
[1642486316689,2.68152824,3185.9,3185.5,1.72807395]
[1642486316889,2.68152824,3185.9,3185.5,2.02807395]
[1642486317092,2.68152824,3185.9,3185.5,3.03637395]
[1642486317294,2.68152824,3185.9,3185.6,0.1255]
[1642486317491,2.68152824,3186.0,3185.6,1.1255]
[1642486318594,2.68152824,3186.0,3185.6,0.1255]
[1642486318797,3.92277396,3186.1,3185.6,0.1255]
[1642486318995,3.92277396,3186.1,3185.4,0.4255]
[1642486319194,0.00454739,3186.0,3185.4,1.53870752]
[1642486319496,0.00397897,3185.9,3185.4,2.13870752]
[1642486319897,0.00341055,3185.8,3185.4,2.13870752]
[1642486320142,2.68152824,3186.1,3185.5,3.45]
[1642486320349,2.68152824,3186.1,3185.5,0.00170527]
[1642486320545,2.68266508,3186.0,3185.6,0.00113685]
[1642486320746,2.68266508,3186.0,3185.5,1.44870527]
[1642486320946,2.68152824,3186.0,3185.6,0.00113685]
[1642486321146,2.68152824,3186.0,3185.6,0.5010888]
[1642486321346,2.68380193,3186.2,3185.6,0.5010888]
[1642486321548,2.68380193,3186.2,3186.0,1.29327093]
[1642486321746,0.00170527,3186.1,3185.6,2.1036888]
[1642486321946,0.00170527,3186.1,3185.7,0.1255]
[1642486322147,3.52782289,3186.6,3185.8,5.7]
[1642486322347,2.68097744,3186.5,3185.9,0.5725]
[1642486322552,0.00113684,3186.3,3185.9,1.62921449]
[1642486322752,2.68097744,3186.5,3186.3,1.41308075]
[1642486323149,2.68097744,3186.5,3186.3,2.01308075]
[1642486323451,2.81783918,3186.9,3186.4,0.5725]
[1642486323650,2.81783918,3186.9,3186.4,1.5725]
[1642486323890,2.82124972,3186.9,3186.4,1.8725]
[1642486324190,0.00341054,3186.9,3186.6,0.49995195]
[1642486324387,0.00341054,3186.9,3186.7,0.5725]
[1642486324588,0.00341054,3186.9,3186.7,0.8725]
[1642486326592,0.00341054,3186.9,3186.6,0.49995195]
[1642486326793,0.00341054,3186.9,3186.3,1.46865839]
[1642486326991,0.00341054,3186.9,3186.3,0.05557764]
[1642486328047,0.00341054,3186.9,3186.4,0.6]
[1642486328250,0.00341054,3186.9,3186.4,0.3]
[1642486328447,0.00341054,3186.9,3186.3,0.49995195]
[1642486328651,0.00341054,3186.9,3186.3,0.79995195]
[1642486328849,0.00341054,3186.9,3186.3,1.09995195]
[1642486329248,0.00341054,3186.9,3186.4,1.37302162]
[1642486329548,0.00341054,3186.9,3186.4,1.0]
[1642486329948,0.00341054,3186.9,3186.3,1.37517337]
[1642486330456,0.1255,3187.1,3186.6,1.20928167]
[1642486330651,0.1255,3187.1,3186.6,2.73628167]
[1642486330850,0.1255,3187.1,3186.7,0.00113684]
[1642486331048,0.0114082,3187.2,3186.7,0.00113684]
[1642486331489,0.00113685,3187.1,3186.7,0.00113684]
[1642486332691,0.12663685,3187.1,3186.7,0.00113684]
[1642486333894,0.00113685,3187.1,3186.7,0.00113684]
[1642486334898,0.1255,3187.0,3186.7,0.00113684]
[1642486337143,0.1255,3187.0,3186.5,0.00227369]
[1642486338350,1.73490652,3187.0,3186.5,0.00227369]
[1642486339388,0.1255,3187.0,3186.5,0.00227369]
[1642486341988,0.1255,3187.0,3185.9,0.00568423]
[1642486342189,0.1255,3187.0,3186.0,0.1255]
[1642486342389,1.61054337,3187.1,3186.0,0.1255]
[1642486342645,1.24729976,3186.5,3186.1,0.00454738]
[1642486343445,2.68121764,3186.4,3186.1,0.00454738]
[1642486346695,2.68121764,3186.4,3185.9,0.00568423]
[1642486346894,2.68121764,3186.4,3185.8,0.00625265]
[1642486347698,2.68121764,3186.4,3185.8,1.00625265]
[1642486348101,2.68121764,3186.4,3185.9,0.00568423]
[1642486348398,2.68121764,3186.4,3185.7,0.00682108]
[1642486350442,0.1255,3186.3,3185.7,0.00682108]
[1642486350843,0.1255,3186.3,3185.6,0.0073895]
[1642486351246,18.5455,3186.3,3185.6,0.0073895]
[1642486351947,0.1255,3186.3,3185.6,0.0073895]
[1642486352145,2.68121764,3186.2,3185.6,0.0073895]
[1642486352347,0.1255,3186.1,3185.6,0.0073895]
[1642486354294,1.16065455,3185.5,3185.3,0.00909477]
[1642486354495,2.68121764,3186.0,3185.2,0.1351632]
[1642486354895,2.68121764,3186.0,3185.3,0.00909477]
[1642486355696,1.5511986,3185.9,3185.3,0.00909477]
[1642486357297,2.68121764,3185.8,3185.3,0.00909477]
[1642486359446,2.68121764,3185.8,3185.3,1.35635686]
[1642486359646,2.68121764,3185.8,3185.4,0.1255]
[1642486359846,2.68121764,3185.8,3185.4,0.13402635]
[1642486360048,2.68121764,3185.8,3185.5,0.00795792]
[1642486360348,5.78121764,3185.8,3185.5,0.00795792]
[1642486360747,3.1,3185.8,3185.5,0.00795792]
[1642486362996,3.1,3185.8,3185.4,0.00852635]
[1642486366450,3.1,3185.8,3185.4,3.06471032]
[1642486366650,3.1,3185.8,3185.5,1.0]
[1642486366849,3.1,3185.8,3185.5,1.00795792]
[1642486367054,3.1,3185.8,3185.6,0.0073895]
[1642486368790,3.1,3185.8,3185.7,0.1255]
[1642486369190,3.1,3185.8,3185.7,0.13232108]
[1642486371891,3.1,3185.8,3185.7,0.00682108]
[1642486372293,3.1,3185.8,3185.5,0.00795792]
[1642486372749,3.1,3185.8,3185.4,0.00852635]
[1642486372949,3.1,3185.8,3185.6,0.0073895]
[1642486373150,3.1,3185.8,3185.5,2.33152078]
[1642486373349,3.1,3185.8,3185.5,2.63152078]
[1642486373550,3.1,3185.8,3185.6,0.0073895]
[1642486373749,3.1,3185.8,3185.6,1.0073895]
[1642486374149,3.1,3185.8,3185.7,0.00682108]
[1642486375951,2.5755,3185.7,3185.6,0.0073895]
[1642486376399,2.5755,3185.7,3185.5,0.00795792]
[1642486376604,0.1255,3185.7,3185.5,0.00795792]
[1642486377205,2.80738281,3185.7,3185.5,0.00795792]
[1642486377806,2.80738281,3185.7,3185.3,0.00909477]
[1642486378006,2.80738281,3185.7,3185.2,0.0096632]
[1642486378206,2.80738281,3185.7,3185.2,0.3096632]
[1642486378405,2.80738281,3185.7,3185.2,0.3]
[1642486378605,2.80738281,3185.7,3185.3,0.00909477]
[1642486378606,2.71224324,3185.6,3185.3,0.00909477]
[1642486378807,0.1255,3185.5,3185.3,0.00909477]
[1642486379010,0.1255,3185.5,3185.0,0.01080004]
[1642486379207,0.1255,3185.5,3184.8,0.01193689]
[1642486380063,2.68188281,3185.4,3184.8,0.01193689]
[1642486380249,0.1255,3185.3,3184.8,0.01193689]
[1642486380848,0.1255,3185.3,3184.7,0.01250531]
[1642486381049,1.39561633,3184.8,3184.7,0.01250531]
[1642486381449,3.99142146,3185.3,3184.7,0.01250531]
[1642486381650,2.68188281,3185.2,3184.7,0.01250531]
[1642486383796,4.21711375,3185.2,3184.7,0.01250531]
[1642486383999,1.53523094,3185.2,3184.8,0.1255]
[1642486384398,1.53523094,3185.2,3184.9,0.01136847]
[1642486384797,1.1907,3185.3,3184.9,0.01136847]
[1642486384996,2.65512145,3185.6,3184.9,0.01136847]
[1642486385200,2.65512145,3185.6,3184.9,1.48381574]
[1642486385398,3.5115,3185.7,3185.0,0.3]
[1642486385598,3.5115,3185.7,3185.0,0.31080004]
[1642486385898,6.19958181,3185.7,3185.1,0.01023162]
[1642486386099,1.14343313,3185.3,3185.1,0.01023162]
[1642486386400,1.14343313,3185.3,3184.9,0.01136847]
[1642486387303,4.6653,3185.7,3184.9,0.01136847]
[1642486387573,4.6653,3185.7,3185.0,0.5725]
[1642486387574,0.1255,3185.7,3185.0,0.5725]
[1642486387963,0.1255,3185.7,3185.1,0.01023162]
[1642486388265,0.1255,3185.7,3185.2,0.1255]
[1642486388664,0.1255,3185.7,3185.3,0.00909477]
[1642486388864,0.1255,3185.7,3185.4,0.1255]
[1642486389265,3.1,3185.8,3185.4,0.1255]
[1642486389266,3.1,3185.8,3185.5,0.00795792]
[1642486389464,3.1,3185.8,3185.6,0.1255]
[1642486389863,3.1,3185.8,3185.7,0.00682108]
[1642486390466,3.1,3185.8,3185.6,0.0073895]
[1642486390670,3.1,3185.8,3185.4,0.00852635]
[1642486390866,3.1,3185.8,3185.3,2.34061555]
[1642486391067,3.1,3185.8,3185.4,0.00852635]
[1642486391497,3.1,3185.8,3185.4,1.00852635]
[1642486391898,3.1,3185.8,3185.5,0.00795792]
[1642486393905,3.1,3185.8,3185.7,1.31963924]
[1642486394112,3.1,3185.8,3185.7,5.14963924]
[1642486394308,3.1,3185.8,3185.7,5.15646032]
[1642486394506,3.62292048,3186.7,3185.7,6.45646032]
[1642486394707,3.62292048,3186.7,3185.8,4.7]
[1642486394906,3.62292048,3186.7,3185.8,5.70625265]
[1642486395147,3.62292048,3186.7,3185.9,0.00568423]
[1642486395349,0.1255,3187.0,3185.9,1.84635208]
[1642486395559,1.60940652,3187.1,3186.0,0.1255]
[1642486395746,1.60940652,3187.1,3186.0,0.13061581]
[1642486395946,1.60940652,3187.1,3186.1,0.00454738]
[1642486396146,2.8305335,3186.8,3186.2,0.1255]
[1642486396546,2.8305335,3186.8,3186.3,0.00341054]
[1642486396750,1.60940652,3187.1,3186.3,0.00341054]
[1642486396951,2.8419417,3187.2,3186.3,0.00341054]
[1642486397853,0.0114082,3187.2,3186.3,0.00341054]
[1642486398056,1.55888575,3187.2,3186.3,0.00341054]
[1642486399504,1.55888575,3187.2,3186.4,0.1255]
[1642486399704,0.0114082,3187.2,3186.4,1.5338]
[1642486399904,0.0114082,3187.2,3186.5,0.00227369]
[1642486400104,3.1114082,3187.2,3186.5,0.00227369]
[1642486400707,1.34520763,3187.1,3186.5,0.00227369]
[1642486400905,0.1255,3187.1,3186.5,0.00227369]
[1642486401305,0.1255,3187.1,3186.5,0.30227369]
[1642486401704,0.1255,3187.1,3186.6,0.00170527]
[1642486401905,0.0114082,3187.2,3186.6,0.00170527]
[1642486402305,0.0114082,3187.2,3186.5,0.30227369]
[1642486402558,0.0114082,3187.2,3186.6,0.00170527]
[1642486403357,0.0114082,3187.2,3186.5,0.30227369]
[1642486403551,0.0114082,3187.2,3186.6,0.00170527]
[1642486403951,2.68093487,3187.1,3186.7,1.29112918]
[1642486404152,2.68093487,3187.1,3186.7,1.59112918]
[1642486404352,2.68093487,3187.1,3186.8,0.1255]
[1642486404752,2.68093487,3187.1,3186.7,0.6]
[1642486404950,2.68093487,3187.1,3186.5,1.00227369]
[1642486405351,2.68093487,3187.1,3186.6,0.00170527]
[1642486406900,2.68093487,3187.1,3186.5,0.00227369]
[1642486407100,2.68093487,3187.1,3186.5,0.30227369]
[1642486407300,2.68093487,3187.1,3186.5,0.3]
[1642486407501,2.68093487,3187.1,3186.6,0.00170527]
[1642486407903,2.68093487,3187.1,3186.4,0.00284211]
[1642486408303,2.68093487,3187.1,3186.4,0.30284211]
[1642486408506,2.68093487,3187.1,3186.3,0.00341054]
[1642486408707,2.68093487,3187.1,3186.5,0.00227369]
[1642486408905,2.68093487,3187.1,3186.3,0.03618397]
[1642486409104,2.68093487,3187.1,3186.4,0.00284211]
[1642486409504,2.68093487,3187.1,3186.3,0.00341054]
[1642486409704,0.1255,3187.0,3186.3,0.00341054]
[1642486409907,2.98093487,3187.1,3186.3,0.00341054]
[1642486410358,2.69366038,3187.0,3186.3,0.00341054]
[1642486410557,2.81916038,3187.0,3186.3,0.00341054]
[1642486410956,0.1255,3187.0,3186.2,0.30397896]
[1642486411160,0.1255,3187.0,3186.3,0.00341054]
[1642486411758,2.80643487,3187.0,3186.3,0.00341054]
[1642486412659,2.80643487,3187.0,3186.3,0.12891054]
[1642486412660,2.68093487,3187.0,3186.3,0.12891054]
[1642486413060,2.68093487,3186.9,3186.4,0.00284211]
[1642486413261,2.68093487,3186.9,3186.5,0.1255]
[1642486413559,2.68093487,3186.9,3186.6,0.00170527]
[1642486413797,0.3,3187.1,3186.7,5.8255]
[1642486414001,0.3,3187.1,3186.7,7.1856]
[1642486414196,0.0114082,3187.2,3186.8,1.0]
[1642486414398,0.0114082,3187.2,3186.9,1.63584733]
[1642486414696,0.0114082,3187.2,3186.9,2.27034382]
[1642486414895,0.0114082,3187.2,3186.9,0.75999649]
[1642486415296,0.0114082,3187.2,3186.9,0.48053128]
[1642486415696,0.0114082,3187.2,3187.0,0.03794588]
[1642486415896,0.0114082,3187.2,3187.1,0.1255]
[1642486416096,0.0114082,3187.2,3187.1,0.4255]
[1642486416296,0.01311347,3187.2,3187.1,0.4255]
[1642486416698,0.01311347,3187.2,3187.1,0.1255]
[1642486417297,0.01311347,3187.2,3186.8,0.1255]
[1642486417755,0.00113685,3187.1,3186.8,0.1255]
[1642486418558,0.0114082,3187.2,3186.9,6.20189458]
[1642486418760,0.0114082,3187.2,3187.0,1.6934181]
[1642486418958,1.60940652,3187.9,3187.2,5.7]
[1642486419162,1.73480652,3187.9,3187.3,1.0]
[1642486419357,1.73480652,3187.9,3187.1,0.83937464]
[1642486419358,0.00397896,3187.8,3187.1,0.83937464]
[1642486419559,0.1254,3187.7,3187.1,1.09995195]
[1642486419758,0.3,3187.2,3187.1,1.09995195]
[1642486419959,0.25,3187.2,3187.1,0.6]
[1642486420158,0.25,3187.2,3187.0,0.1255]
[1642486420358,0.25,3187.2,3186.9,0.42663685]
[1642486420559,0.25,3187.2,3187.0,0.03784231]
[1642486420759,0.00284212,3187.6,3186.9,0.12663685]
[1642486420961,0.00284212,3187.6,3186.9,2.21072875]
[1642486421159,0.00227369,3187.5,3186.9,2.21072875]
[1642486421398,0.00227369,3187.5,3186.9,1.42663685]
[1642486421607,0.00170527,3187.4,3186.9,3.32435125]
[1642486422003,0.00113685,3187.3,3187.0,1.0]
[1642486422403,0.00454739,3187.9,3187.0,1.3]
[1642486422604,0.00454739,3187.9,3187.0,2.0840369]
[1642486422806,0.00454739,3187.9,3187.1,0.3]
[1642486423206,0.00454739,3187.9,3187.1,0.9217]
[1642486423405,0.00454739,3187.9,3187.1,0.95777496]
[1642486423604,0.00454739,3187.9,3187.1,1.45772691]
[1642486423805,0.00454739,3187.9,3187.2,2.95546907]
[1642486424006,0.00454739,3187.9,3187.2,3.25546907]
[1642486424206,0.00454739,3187.9,3187.3,1.0]
[1642486424409,0.00454739,3187.9,3187.6,1.28716471]
[1642486424608,0.00454739,3187.9,3187.6,1.58716471]
[1642486424807,0.00454739,3187.9,3187.6,1.88716471]
[1642486425059,0.00454739,3187.9,3187.6,2.88716471]
[1642486425448,0.00454739,3187.9,3187.6,1.88716471]
[1642486425650,0.00454739,3187.9,3187.6,0.6]
[1642486425851,0.00454739,3187.9,3187.6,0.33741769]
[1642486426052,0.00454739,3187.9,3187.7,0.3]
[1642486426456,0.00454739,3187.9,3187.5,0.63887244]
[1642486426651,0.12579,3188.0,3187.9,19.98315261]
[1642486426853,0.12579,3188.0,3187.9,20.28315261]
[1642486427056,0.12579,3188.0,3187.9,21.58315261]
[1642486427354,0.07579,3188.0,3187.9,21.58315261]
[1642486430097,0.07579,3188.0,3187.9,21.61332013]
[1642486430499,1.60940652,3188.4,3187.9,21.58315261]
[1642486430698,7.42,3188.5,3188.0,1.03259399]
[1642486430699,9.02940652,3188.5,3188.0,1.03259399]
[1642486430897,0.00227369,3188.3,3188.0,1.03259399]
[1642486431098,0.00227369,3188.3,3188.0,1.0]
[1642486431298,0.00170527,3188.2,3188.0,1.0]
[1642486431698,0.00113685,3188.1,3188.0,1.0]
[1642486431898,0.00113685,3188.1,3188.0,1.03975833]
[1642486432302,0.00113685,3188.1,3188.0,1.0]
[1642486433354,0.00113685,3188.1,3188.0,1.03238399]
[1642486435557,0.00113685,3188.1,3188.0,1.0]
[1642486437805,0.00113685,3188.1,3188.0,1.03004058]
[1642486438203,0.00113685,3188.1,3188.0,1.0]
[1642486438604,0.00113685,3188.1,3188.0,1.03025188]
[1642486439404,0.00113685,3188.1,3188.0,1.15565188]
[1642486440446,0.00113685,3188.1,3188.0,1.03025188]
[1642486441349,0.00113685,3188.1,3188.0,1.48959066]
[1642486441647,0.00113685,3188.1,3188.0,1.62276258]
[1642486442050,0.00113685,3188.1,3188.0,2.80239132]
[1642486443052,0.00113685,3188.1,3188.0,1.62276258]
[1642486445901,0.00113685,3188.1,3188.0,1.49736258]
[1642486446602,0.00113685,3188.1,3188.0,1.48959066]
[1642486448255,0.00113685,3188.1,3188.0,1.96202677]
[1642486450363,0.00113685,3188.1,3188.0,1.48959066]
[1642486450558,0.00113685,3188.1,3188.0,1.45933878]
[1642486451599,0.00113685,3188.1,3188.0,1.46745955]
[1642486455154,0.12653685,3188.1,3188.0,0.46745955]
[1642486455353,2.70736218,3188.1,3188.0,0.46745955]
[1642486455951,0.12653685,3188.1,3188.0,0.46745955]
[1642486456153,2.80627895,3188.1,3188.0,0.00812077]
[1642486457155,2.68087895,3188.1,3188.0,0.00812077]
[1642486458160,5.40880392,3188.1,3188.0,0.00812077]
[1642486460804,2.68087895,3188.1,3188.0,0.00812077]
[1642486462004,2.6797421,3188.1,3188.0,0.00812077]
[1642486462407,2.6797421,3188.1,3188.0,1.99582077]
[1642486462859,2.6797421,3188.1,3188.0,2.29582077]
[1642486463056,6.12563854,3188.4,3188.0,2.29582077]
[1642486463057,2.6797421,3188.3,3188.0,2.29582077]
[1642486463260,5.28450031,3188.3,3188.0,3.12392077]
[1642486463459,0.00227369,3188.3,3188.2,5.74286775]
[1642486463660,0.00227369,3188.3,3188.2,1.0]
[1642486463857,0.00227369,3188.3,3188.2,1.35500165]
[1642486464058,0.00227369,3188.3,3188.2,0.35500165]
[1642486464661,0.00227369,3188.3,3188.2,0.39385297]
[1642486464860,0.00227369,3188.3,3188.2,0.33885132]
[1642486465060,0.00227369,3188.3,3188.2,0.3]
[1642486470060,1.38871173,3188.7,3188.3,1.98542631]
[1642486470255,1.38871173,3188.7,3188.3,2.28542631]
[1642486470455,0.00170527,3188.6,3188.3,2.28542631]
[1642486470656,0.00170527,3188.6,3188.3,3.28542631]
[1642486470955,0.00113685,3188.5,3188.3,3.28542631]
[1642486471154,0.00113685,3188.5,3188.3,4.80984205]
[1642486471357,1.6005651,3188.8,3188.3,4.80984205]
[1642486471358,0.0022737,3188.7,3188.3,4.80984205]
[1642486471556,0.0022737,3188.7,3188.4,0.00834087]
[1642486474104,1.4666991,3188.7,3188.4,0.00834087]
[1642486476905,1.4666991,3188.7,3188.3,3.29363683]
[1642486477568,0.1254,3188.6,3188.3,1.99363683]
[1642486477965,0.00113685,3188.5,3188.3,1.99363683]
[1642486481506,0.00113685,3188.5,3188.3,1.98542631]
[1642486482508,5.71276882,3188.4,3188.3,1.98542631]
[1642486482710,5.83816882,3188.4,3188.3,1.98542631]
[1642486484514,26.93803593,3188.4,3188.3,1.98542631]
[1642486485458,30.57739267,3188.4,3188.3,1.98542631]
[1642486487061,18.42,3188.2,3188.0,1.9877]
[1642486487262,24.2454,3188.1,3188.0,1.9877]
[1642486487462,24.6924,3188.1,3188.0,1.9877]
[1642486487966,27.37226711,3188.1,3188.0,1.9877]
[1642486488165,31.01162385,3188.1,3188.0,1.9877]
[1642486489417,25.31162385,3188.1,3188.0,1.9877]
[1642486491214,21.67226711,3188.1,3188.0,1.9877]
[1642486491814,21.54686711,3188.1,3188.0,1.9877]
[1642486492867,21.54686711,3188.1,3187.0,2.87832086]
[1642486493164,1.42651887,3187.4,3187.1,0.00682108]
[1642486493566,25.8414,3188.0,3187.1,0.00682108]
[1642486493765,25.716,3188.0,3187.1,0.00682108]
[1642486493963,25.716,3188.0,3186.9,0.00795793]
[1642486494365,7.296,3188.0,3186.9,0.00795793]
[1642486494766,1.33910971,3187.7,3186.9,0.00795793]
[1642486495766,2.67986711,3187.6,3186.9,0.00795793]
[1642486496066,5.82348782,3187.6,3186.9,0.00795793]
[1642486496307,5.82348782,3187.6,3186.9,0.30795793]
[1642486496512,5.82348782,3187.6,3186.7,0.00909477]
[1642486496709,5.82348782,3187.6,3187.0,0.0073895]
[1642486496710,5.69798782,3187.6,3187.0,0.0073895]
[1642486497009,0.1254,3187.5,3186.7,0.00909477]
[1642486497210,0.12418631,3187.5,3186.7,0.00909477]
[1642486497814,2.67986711,3187.4,3186.7,0.00909477]
[1642486499017,2.67986711,3187.5,3186.7,0.00909477]
[1642486499217,0.1255,3187.4,3186.7,0.00909477]
[1642486499616,0.1255,3187.4,3186.4,1.16131768]
[1642486499822,2.67986711,3187.5,3186.5,0.13573162]
[1642486499823,2.80536711,3187.5,3186.5,0.13573162]
[1642486500258,2.80536711,3187.5,3186.6,0.0096632]
[1642486500558,2.67986711,3187.5,3186.6,0.0096632]
[1642486500958,2.67986711,3187.4,3186.7,0.1255]
[1642486501358,2.67986711,3187.4,3186.8,0.00852635]
[1642486501560,2.67986711,3187.4,3186.9,0.1255]
[1642486501758,1.1592,3187.6,3186.9,0.1255]
[1642486501961,3.6629,3187.9,3187.0,0.0073895]
[1642486502159,3.6629,3187.9,3187.4,1.51082643]
[1642486502363,7.296,3188.0,3187.5,0.3]
[1642486502559,7.296,3188.0,3187.5,0.30454739]
[1642486502763,7.296,3188.0,3187.6,0.00397896]
[1642486503810,7.296,3188.0,3187.6,0.12937896]
[1642486504210,7.296,3188.0,3187.7,0.00341054]
[1642486504810,0.00113685,3188.5,3187.8,0.1254]
[1642486505213,0.00113685,3188.5,3187.9,0.00227369]
[1642486505812,1.1001127,3188.5,3187.7,0.00341054]
[1642486506012,1.1001127,3188.5,3187.8,0.1254]
[1642486506411,1.1001127,3188.5,3187.9,0.00227369]
[1642486507015,1.1001127,3188.5,3187.7,0.00341054]